[Event "31st Kavala Open-A 2022"]
[Site "Kavala"]
[Date "2022.07.27"]
[Round "2.15"]
[White "Ladopoulos, Dimitrios"]
[Black "Kazantzoglou, Stefanos"]
[Result "1-0"]
[ECO "E02"]
[WhiteElo "2335"]
[BlackElo "1676"]
[Annotator "TA"]
[PlyCount "79"]
[EventDate "2022.07.27"]
[EventType "swiss"]
[EventCountry "GRE"]
[SourceTitle "playchess.com"]
[Source "ChessBase"]
[SourceQuality "1"]
[TimeControl "40/5400+30:1800+30"]

{[%evp 21,79,22,28,20,20,23,30,28,30,25,29,29,35,27,40,39,89,13,47,47,44,46,46,47,40,44,59,46,58,52,47,46,60,41,51,31,31,16,74,62,141,135,527,218,271,264,268,265,257,257,275,275,285,277,309,285,535,521,503,478]} 1. Nf3 {[%emt 0:00:11]} d5 {[%emt 0:00:12]} 2. d4 {[%emt 0:00:15]} Nf6 {[%emt 0:00:23]} 3. c4 {[%emt 0:01:35]} e6 {[%emt 0:00:53]} 4. g3 {[%emt 0:03:37]} dxc4 {[%emt 0:04:48]} 5. Qa4+ {[%emt 0:02:37]} Bd7 {[%emt 0:02:14]} 6. Qxc4 {[%emt 0:00:08]} Bc6 {[%emt 0:01:53]} 7. Bg2 {[%emt 0:00:27]} Be7 {[%emt 0:01:26]} 8. O-O {[%emt 0:02:52]} O-O {[%emt 0:01:52]} 9. Bg5 {[%emt 0:03:36]} Nbd7 {[%emt 0:03:32]} 10. Nc3 {[%emt 0:04:16]} h6 {[%emt 0:06:28]} 11. Bxf6 {[%emt 0:02:25]} Nxf6 {[%emt 0:01:06]} 12. Rac1 {[%emt 0:10:10] E02: Open Catalan: 5 Qa4+.} Bxf3 {[%emt 0:02:28]} 13. Bxf3 {[%emt 0:03:07]} c6 {[%emt 0:00:30] [#]} 14. a3 $146 {[%emt 0:07:04] White has an edge.} ({Predecessor:} 14. Rfd1 a5 15. e4 Qb6 16. Rd2 Rfd8 17. Rcd1 Rac8 18. Qe2 Rd7 19. d5 Rcd8 20. dxe6 fxe6 {½-½ (63) Prithu,G (2472)-Shirov,A (2662) Europe Echecs INT 2021}) 14... Qb6 {[%emt 0:05:19]} 15. Na4 {[%emt 0:07:24]} Qa5 {[%emt 0:02:02] [#] aiming for ...b5.} 16. Qc2 {[%emt 0:00:48]} Rfd8 {[%emt 0:03:00]} 17. Rfd1 {[%emt 0:00:44]} a6 {[%emt 0:03:05]} 18. b4 {[%emt 0:05:41]} Qb5 {[%emt 0:06:52]} (18... Qc7 $14) 19. Rb1 {[%emt 0:05:19]} (19. e4 $16) 19... Qf5 {[%emt 0:03:17]} 20. Qxf5 {[%emt 0:03:09]} exf5 {[%emt 0:00:11]} 21. Nb6 {[%emt 0:03:30]} Rab8 {[%emt 0:00:32]} 22. e3 {[%emt 0:02:12]} Ne4 {[%emt 0:01:46]} 23. Rb2 {[%emt 0:09:51]} Bd6 {[%emt 0:03:16]} 24. Rc1 {[%emt 0:02:09]} Bc7 {[%emt 0:03:35]} 25. Na4 {[%emt 0:02:00]} Rd7 {[%emt 0:08:18]} 26. Nc5 {[%emt 0:02:26]} Re7 {[%emt 0:01:46]} 27. a4 {[%emt 0:03:09]} Bd6 {[%emt 0:01:23]} 28. Bxe4 {[%emt 0:07:28]} fxe4 {[%emt 0:00:36]} 29. b5 {[%emt 0:00:16]} axb5 {[%emt 0:02:58]} (29... cxb5 $1 $11 {remains equal.} 30. axb5 Rc8) 30. axb5 $16 {[%emt 0:00:17]} Ree8 {[%emt 0:04:03]} (30... Rc7 $14) 31. bxc6 {[%emt 0:00:23] White is more active.} b6 {[%emt 0:01:10][%mdl 8192] [#] A mistake that costs the game.} (31... Bxc5 $16 {is more resistant.} 32. Rxc5 bxc6 33. Rxb8 Rxb8 34. Rxc6 h5) 32. c7 {[%emt 0:03:40]} (32. Na6 $142) 32... Rbc8 {[%emt 0:02:23]} 33. Rxb6 {[%emt 0:00:15]} ({And not} 33. Na6 Ba3 34. Rxb6 Bxc1 $11) 33... Bxc7 {[%emt 0:00:19]} 34. Ra6 {[%emt 0:01:41]} Bd8 {[%emt 0:02:14]} 35. Rb1 {[%emt 0:00:15]} Re7 {[%emt 0:00:47]} 36. Kg2 {[%emt 0:01:24]} Kf8 {[%emt 0:01:05]} 37. Rb5 {[%emt 0:01:30]} Bc7 {[%emt 0:01:02]} 38. Rc6 {[%emt 0:00:27]} Ke8 $2 {[%emt 0:01:14]} (38... Rd8 39. Nxe4 Rxe4) 39. Na6 {[%emt 0:00:21]} Kd7 {[%emt 0:00:18]} 40. Rbc5 {[%emt 0:00:06] Weighted Error Value: White=0.20 (precise) /Black=0.53} ({Less strong is} 40. Rxc7+ Rxc7 41. Nxc7 Kxc7 $18) 1-0

[Event "31st Kavala Open-A 2022"]
[Site "Kavala"]
[Date "2022.07.27"]
[Round "2.16"]
[White "Nikolaev, Georgi"]
[Black "Gagare, Shardul"]
[Result "0-1"]
[ECO "B48"]
[WhiteElo "2026"]
[BlackElo "2514"]
[Annotator "TA"]
[PlyCount "82"]
[EventDate "2022.07.27"]
[EventType "swiss"]
[EventCountry "GRE"]
[SourceTitle "playchess.com"]
[Source "ChessBase"]
[SourceQuality "1"]
[TimeControl "40/5400+30:1800+30"]

{[%evp 16,82,32,33,49,8,6,6,15,21,15,9,21,7,58,57,58,-28,-27,-29,-17,-14,-14,-13,-13,-71,-53,-81,-63,-98,-79,-286,-302,-300,-304,-308,-293,-291,-308,-291,-294,-313,-313,-303,-304,-671,-671,-622,-353,-1116,-1054,-1102,-1100,-1039,-1020,-931,-889,-772,-776,-670,-591,-10397,-6616,-29962,-29964,-29958,-11770,-4718,-4618]} 1. e4 {[%emt 0:00:30]} c5 {[%emt 0:00:30]} 2. Nf3 {[%emt 0:00:30]} e6 {[%emt 0:00:30]} 3. d4 {[%emt 0:00:30]} cxd4 {[%emt 0:00:30]} 4. Nxd4 {[%emt 0:00:30]} Nc6 {[%emt 0:00:30]} 5. Nc3 {[%emt 0:00:30]} Qc7 {[%emt 0:00:30]} 6. Be3 {[%emt 0:00:30]} a6 {[%emt 0:00:30]} 7. Qd2 {[%emt 0:00:30]} Nf6 {[%emt 0:00:30]} 8. O-O-O {[%emt 0:00:30]} Bb4 {[%emt 0:00:30]} 9. f3 {[%emt 0:00:30]} O-O {[%emt 0:00:30] B48: Sicilian: Taimanov: 5 Nc3 Qc7 6 Be3 a6 without Be2.} 10. g4 {[%emt 0:00:30]} (10. a3 $5 {[%cal Ra3b4]} Be7 11. g4 $14) 10... Ne5 {[%emt 0:00:30]} 11. g5 {[%emt 0:00:30]} Nh5 {[%emt 0:00:30] The position is equal.} 12. a3 {[%emt 0:00:30]} Bxc3 {[%emt 0:00:30]} 13. Qxc3 {[%emt 0:00:30]} Qxc3 {[%emt 0:00:30]} 14. bxc3 {[%emt 0:00:30]} f6 {[%emt 0:00:30]} ({Black should try} 14... Re8 $11) 15. Rg1 $1 $14 {[%emt 0:00:30] [#] Black must now prevent f4.} b5 $146 {[%emt 0:00:30]} ({Predecessor:} 15... Ng6 16. c4 b6 17. Rd3 Rb8 18. Rb3 Rb7 19. a4 Nhf4 20. Ne2 e5 21. Nxf4 Nxf4 22. Bxb6 fxg5 23. c5 Ne6 24. Bxa6 Nd4 25. Bc4+ Kh8 26. a5 {1-0 (26) Cheparinov,I (2679)-Maletin,P (2557) Budva 2009}) 16. Rg4 {[%emt 0:00:30]} Nxg4 {[%emt 0:00:30]} 17. fxg4 {[%emt 0:00:30] [#]} Nf4 {[%emt 0:00:30]} 18. Bxf4 {[%emt 0:00:30] aiming for Bd6.} e5 {[%emt 0:00:30]} 19. Bg3 {[%emt 0:00:30]} exd4 {[%emt 0:00:30]} 20. cxd4 {[%emt 0:00:30]} (20. Bd6 $11 {remains equal.}) 20... d5 $36 {[%emt 0:00:30][%mdl 2048] Black is more active.} 21. gxf6 {[%emt 0:00:30]} Bxg4 {[%emt 0:00:30]} 22. fxg7 {[%emt 0:00:30]} Kxg7 {[%emt 0:00:30]} 23. Bg2 $2 {[%emt 0:00:30] Now White is beyond hope.} Bxd1 $19 {[%emt 0:00:30]} 24. Kxd1 {[%emt 0:00:30]} dxe4 {[%emt 0:00:30]} 25. Bxe4 {[%emt 0:00:30]} Rae8 {[%emt 0:00:30]} 26. Bb7 {[%emt 0:00:30]} Rf6 {[%emt 0:00:30]} 27. Kd2 {[%emt 0:00:30]} Re7 {[%emt 0:00:30]} 28. Bc8 {[%emt 0:00:30]} Rc6 {[%emt 0:00:30]} 29. Bf5 {[%emt 0:00:30]} Kf6 {[%emt 0:00:30]} 30. Bh4+ $2 {[%emt 0:00:30]} (30. Bd3) 30... Kxf5 {[%emt 0:00:30]} 31. Bxe7 {[%emt 0:00:30][%mdl 4096] Endgame KR-KB} Ke4 {[%emt 0:00:30]} 32. c3 $2 {[%emt 0:00:30]} (32. Bd8) 32... Rg6 {[%emt 0:00:30]} 33. h4 {[%emt 0:00:30]} Rg2+ {[%emt 0:00:30]} 34. Ke1 {[%emt 0:00:30]} Kd3 {[%emt 0:00:30]} 35. Kf1 {[%emt 0:00:30]} Rg7 {[%emt 0:00:30]} 36. Bb4 {[%emt 0:00:30]} Kc4 {[%emt 0:00:30]} 37. Kf2 {[%emt 0:00:30]} Rg4 {[%emt 0:00:30] [#] Hoping for ...h5.} 38. Be7 {[%emt 0:00:30]} Kxc3 {[%emt 0:00:30]} 39. d5 {[%emt 0:00:30]} Kc4 {[%emt 0:00:30]} 40. d6 {[%emt 0:00:30]} Rd4 {[%emt 0:00:30] ( -> ...a5)} 41. Ke3 {[%emt 0:30:30]} a5 {[%emt 0:30:30] Weighted Error Value: White=0.81/Black=0.07 (flawless)} 0-1

[Event "31st Kavala Open-A 2022"]
[Site "Kavala"]
[Date "2022.07.27"]
[Round "3.1"]
[White "Gopal G.N."]
[Black "Kanakaris, Georgios"]
[Result "1/2-1/2"]
[ECO "C06"]
[WhiteElo "2593"]
[BlackElo "2389"]
[Annotator "TA"]
[PlyCount "41"]
[EventDate "2022.07.27"]
[EventType "swiss"]
[EventCountry "GRE"]
[SourceTitle "playchess.com"]
[Source "ChessBase"]
[SourceQuality "1"]
[TimeControl "40/5400+30:1800+30"]

{[%evp 15,41,25,20,27,27,24,46,35,41,19,30,24,21,21,30,17,35,21,50,47,104,45,63,58,70,31,39,33]} 1. e4 {[%emt 0:00:03]} e6 {[%emt 0:00:08]} 2. d4 {[%emt 0:00:02]} d5 {[%emt 0:00:06]} 3. Nd2 {[%emt 0:00:04]} Be7 {[%emt 0:00:05]} 4. Ngf3 {[%emt 0:03:05]} Nf6 {[%emt 0:00:07]} 5. e5 {[%emt 0:00:11]} Nfd7 {[%emt 0:00:05]} 6. Bd3 {[%emt 0:00:16]} c5 {[%emt 0:00:04]} 7. c3 {[%emt 0:00:10]} Nc6 {[%emt 0:00:06]} 8. O-O {[%emt 0:00:51]} a5 {[%emt 0:00:09]} 9. a4 $1 {[%emt 0:04:03][%mdl 4] is more profitable than 9.Re1 at the moment. C06: French Tarrasch: 3...Nf6 4 e5 Nfd7 5 Bd3 main lines.} O-O {[%emt 0:04:10]} 10. Re1 {[%emt 0:06:40]} f6 {[%emt 0:00:38]} 11. exf6 {[%emt 0:05:22]} Nxf6 {[%emt 0:00:08]} 12. h3 {[%emt 0:06:14]} Qb6 {[%emt 0:11:24][%cal Rc5d4]} 13. Nf1 {[%emt 0:04:44]} cxd4 {[%emt 0:00:07]} 14. cxd4 {[%emt 0:00:03] [#]} Bd6 $146 {[%emt 0:14:14]} ({Predecessor:} 14... Bd7 15. Be3 Rac8 16. Rc1 Qxb2 17. Rb1 Qa3 18. Rb3 Qd6 19. Rxb7 Rb8 20. Rxb8 Qxb8 {0-1 (35) Boschma,B (2338)-Beckmann,F (2368) ICCF email 2012}) 15. Be3 {[%emt 0:12:14]} Bd7 {[%emt 0:01:18]} (15... Qxb2 $2 16. Rb1 Qa3 17. Bc1 $18) 16. Rc1 {[%emt 0:03:14]} Rae8 {[%emt 0:09:17]} (16... Qxb2 $2 17. Rb1 Qa3 18. Bc1 $18 (18. Rxb7 Nb4 $15)) 17. Ne5 {[%emt 0:12:34]} Bb8 {[%emt 0:10:43] [#]} (17... Re7 $14) 18. Bb5 {[%emt 0:04:56] White is more active.} (18. Bg5 $1 $16 {[%cal Rg5f6] aiming for Bxf6.} Qd8 19. b3 (19. Nxd7 Qxd7 20. Be3 e5 $11)) 18... Re7 {[%emt 0:04:47] White is slightly better.} 19. Nd2 {[%emt 0:06:54]} Nb4 {[%emt 0:03:41]} (19... Nxd4 $2 20. Nxd7 Rxd7 21. Bxd7 Nxd7 22. Qg4 $18) 20. Bf1 {[%emt 0:06:26]} Qd8 {[%emt 0:10:56]} 21. Ndf3 {[%emt 0:05:16] Weighted Error Value: White=0.13 (very precise) /Black=0.11 (very precise)} 1/2-1/2

[Event "31st Kavala Open-A 2022"]
[Site "Kavala"]
[Date "2022.07.27"]
[Round "3.2"]
[White "Celik, Hasan Huseyin"]
[Black "Kourkoulos-Arditis, Stamatis"]
[Result "0-1"]
[ECO "C45"]
[WhiteElo "2363"]
[BlackElo "2535"]
[Annotator "TA"]
[PlyCount "50"]
[EventDate "2022.07.27"]
[EventType "swiss"]
[EventCountry "GRE"]
[SourceTitle "playchess.com"]
[Source "ChessBase"]
[SourceQuality "1"]
[TimeControl "40/5400+30:1800+30"]

{[%evp 11,50,0,0,0,16,0,42,10,45,-4,20,8,8,18,19,-3,0,0,0,0,8,-21,-18,-31,0,-43,-56,-168,-164,-163,-154,-295,-279,-242,0,-669,-647,-685,-641,-1209,-901]} 1. e4 {[%emt 0:00:06]} e5 {[%emt 0:03:03]} 2. Nf3 {[%emt 0:00:28]} Nc6 {[%emt 0:00:06]} 3. d4 {[%emt 0:00:14]} exd4 {[%emt 0:00:04]} 4. Nxd4 {[%emt 0:00:09]} Bc5 {[%emt 0:00:04]} 5. Nb3 {[%emt 0:00:11]} Bb6 {[%emt 0:00:12]} 6. Nc3 {[%emt 0:00:07]} Nge7 {[%emt 0:01:01]} 7. g3 {[%emt 0:07:22] C45: Scotch Game.} d6 {[%emt 0:15:37]} 8. Bg2 {[%emt 0:01:04] [#]} h5 $146 {[%emt 0:04:29]} ({Predecessor:} 8... Be6 9. Nd5 Ne5 10. Nxb6 axb6 11. Nd4 Bg4 12. f3 Bd7 13. f4 N5c6 14. b3 O-O {0-1 (39) Doncevic,D (2249)-Buhmann,R (2568) Skopje 2019}) 9. h3 {[%emt 0:03:53] White is slightly better.} Be6 {[%emt 0:00:07]} 10. Qe2 {[%emt 0:02:00]} (10. Nd5 $14 {deserves consideration.}) 10... Ne5 {[%emt 0:07:15]} 11. Be3 {[%emt 0:06:12]} Bxe3 $1 {[%emt 0:15:43]} 12. Qxe3 {[%emt 0:00:20]} Nc4 $1 {[%emt 0:00:10][%csl LRb2,LRe3]} 13. Qd4 {[%emt 0:03:34]} O-O {[%emt 0:00:46]} 14. O-O-O {[%emt 0:02:43]} Nc6 {[%emt 0:00:14]} 15. Qd3 {[%emt 0:00:14]} a5 $1 $132 {[%emt 0:03:23][%mdl 2048] Black is not holding back} 16. Nd5 {[%emt 0:22:42]} N6e5 {[%emt 0:02:03]} 17. Qc3 {[%emt 0:02:07]} c6 {[%emt 0:11:28]} 18. Nf4 {[%emt 0:01:34]} b5 $1 {[%emt 0:00:47] And now ...b4 would win.} 19. Nxe6 {[%emt 0:02:12]} (19. Nd4 $15 b4 20. Qe1) 19... fxe6 $19 {[%emt 0:00:07]} 20. f4 {[%emt 0:00:05] [#]} b4 $1 {[%emt 0:00:14]} 21. Qe1 {[%emt 0:06:28]} (21. Qd4 $17 c5 22. Nxc5 dxc5 23. Qxd8 Raxd8 24. Rxd8 Rxd8 25. fxe5) 21... a4 {[%emt 0:00:33]} 22. Nd4 {[%emt 0:04:43] [#] Hoping for Bf1.} b3 $2 {[%emt 0:00:24]} (22... Qb6 $1 $19 {[%cal Ob4b3] Strongly threatening ...b3!} 23. fxe5 (23. Kb1 b3) 23... b3) 23. a3 $2 {[%emt 0:03:25][%mdl 8192]} (23. cxb3 $11 axb3 24. axb3 Nd3+ 25. Rxd3 Ra1+ 26. Kc2 Rxe1 27. Rxe1) 23... bxc2 {[%emt 0:01:12] Black is clearly winning.} 24. Nxc2 {[%emt 0:00:11]} Rb8 {[%emt 0:02:21][%cal Ob8b2]} 25. h4 {[%emt 0:14:27] [#]} Rxb2 $1 {[%emt 0:03:19] Weighted Error Value: White=0.90/Black=0.17 (very precise)} 0-1

[Event "31st Kavala Open-A 2022"]
[Site "Kavala"]
[Date "2022.07.27"]
[Round "3.3"]
[White "Levin, Guy"]
[Black "Yilmazyerli, Mert"]
[Result "1/2-1/2"]
[ECO "A37"]
[WhiteElo "2363"]
[BlackElo "2520"]
[Annotator "TA"]
[PlyCount "41"]
[EventDate "2022.07.27"]
[EventType "swiss"]
[EventCountry "GRE"]
[SourceTitle "playchess.com"]
[Source "ChessBase"]
[SourceQuality "1"]
[TimeControl "40/5400+30:1800+30"]

{[%evp 15,41,8,14,0,4,4,18,3,11,0,20,0,14,9,8,0,14,0,0,0,0,0,0,0,0,0,0,0]} 1. c4 {[%emt 0:00:06]} c5 {[%emt 0:07:04]} 2. Nf3 {[%emt 0:00:16]} g6 {[%emt 0:00:30]} 3. g3 {[%emt 0:00:13]} Bg7 {[%emt 0:00:07]} 4. Bg2 {[%emt 0:00:04]} Nc6 {[%emt 0:00:05]} 5. Nc3 {[%emt 0:00:04]} d6 {[%emt 0:00:06]} 6. O-O {[%emt 0:00:35]} e6 {[%emt 0:00:11]} 7. e3 {[%emt 0:00:15] 7.e3 is better than 7.d3.} Nge7 {[%emt 0:00:05]} 8. d4 {[%emt 0:01:23]} O-O {[%emt 0:00:45] The position is equal.} 9. dxc5 {[%emt 0:03:44] A37: Symmetrical English vs ...g6: 4 Bg2 Bg7 5 Nf3.} dxc5 {[%emt 0:00:05]} 10. Qe2 {[%emt 0:00:37]} a6 {[%emt 0:03:32]} 11. Rd1 {[%emt 0:02:40]} Qc7 {[%emt 0:00:10]} 12. Bd2 {[%emt 0:01:44][%cal Bc1d2,Bd2c3,Bc3g7][%mdl 32]} b6 {[%emt 0:16:21]} 13. Rac1 {[%emt 0:16:40]} Bb7 {[%emt 0:00:00]} 14. b3 {[%emt 0:00:59]} Rad8 {[%emt 0:06:40]} 15. Na4 {[%emt 0:06:25]} h6 {[%emt 0:00:50] [#]} 16. a3 $146 {[%emt 0:08:36]} ({Predecessor:} 16. Bc3 e5 17. Ne1 Bc8 18. Rxd8 Rxd8 19. Rd1 Bf5 20. h3 Be6 21. Rd2 Nb8 22. Rxd8+ Qxd8 {0-1 (37) Paladini,J (2084)-Shchekachev,A (2515) Biel 2021}) 16... Ne5 {[%emt 0:06:41]} 17. Bc3 {[%emt 0:03:00]} Rxd1+ {[%emt 0:06:53]} 18. Rxd1 {[%emt 0:00:12] [#] aiming for Nxe5.} Nxf3+ {[%emt 0:00:46]} 19. Bxf3 {[%emt 0:00:02]} Bxf3 {[%emt 0:00:13]} 20. Qxf3 {[%emt 0:00:08]} Rd8 {[%emt 0:00:15]} 21. Bxg7 {[%emt 0:03:04] An interesting draw.  Weighted Error Value: White=0.07 (flawless) /Black=0.05 (flawless)} 1/2-1/2

[Event "31st Kavala Open-A 2022"]
[Site "Kavala"]
[Date "2022.07.27"]
[Round "3.4"]
[White "Halkias, Stelios"]
[Black "Ladopoulos, Dimitrios"]
[Result "1-0"]
[ECO "A30"]
[WhiteElo "2512"]
[BlackElo "2335"]
[Annotator "TA"]
[PlyCount "55"]
[EventDate "2022.07.27"]
[EventType "swiss"]
[EventCountry "GRE"]
[SourceTitle "playchess.com"]
[Source "ChessBase"]
[SourceQuality "1"]
[TimeControl "40/5400+30:1800+30"]

{[%evp 27,55,31,100,75,79,89,83,101,207,203,334,329,358,336,362,363,733,724,712,672,5497,6099,5365,2590,5731,605,5410,582,1189,938]} 1. Nf3 {[%emt 0:08:08]} e6 {[%emt 0:04:12]} 2. c4 {[%emt 0:00:36]} b6 {[%emt 0:02:05]} 3. g3 {[%emt 0:00:47]} Bb7 {[%emt 0:00:10]} 4. Bg2 {[%emt 0:00:10]} Nf6 {[%emt 0:00:34]} 5. O-O {[%emt 0:00:31]} Be7 {[%emt 0:00:11]} 6. Re1 {[%emt 0:00:26]} O-O {[%emt 0:00:42]} 7. Nc3 {[%emt 0:00:25]} d5 {[%emt 0:08:43]} 8. cxd5 {[%emt 0:00:45]} Nxd5 {[%emt 0:08:50]} 9. e4 {[%emt 0:02:27]} Nxc3 {[%emt 0:00:20]} 10. bxc3 {[%emt 0:00:11]} c5 {[%emt 0:00:22]} 11. d4 {[%emt 0:00:42]} cxd4 {[%emt 0:02:14]} 12. cxd4 {[%emt 0:00:11]} Nc6 {[%emt 0:03:07]} 13. Bb2 {[%emt 0:22:57]} Bf6 {[%emt 0:12:38]} 14. Rb1 {[%emt 0:11:09]} Rc8 {[%emt 0:06:34]} (14... Re8 $14) 15. d5 $16 {[%emt 0:16:53] A30: Symmetrical English: Double Fianchetto and Hedgehog.} exd5 {[%emt 0:00:07]} 16. exd5 {[%emt 0:00:37][%cal Be4d5,Bd5d6,Bd6d7][%mdl 32]} Na5 {[%emt 0:01:57]} 17. Ne5 $1 {[%emt 0:02:37][%cal Bf3e5,Be5d3,Bd3f4,Bf4d5][%mdl 32] [#] White is better.} Re8 $146 {[%emt 0:18:05]} (17... Bxe5 $16 18. Bxe5 Qd7) ({Predecessor:} 17... Nc4 18. Nxc4 Rxc4 19. d6 Bc6 20. Qd3 Rc5 21. Bxf6 Qxf6 22. Bxc6 Rxc6 23. Rbd1 Rcc8 {1-0 (32) Berchtold,C (2265)-Thierry,R (2261) ICCF email 2005}) 18. d6 $1 $18 {[%emt 0:13:35]} Rc5 {[%emt 0:12:51]} (18... Re6 $142) 19. d7 {[%emt 0:08:28]} Re6 {[%emt 0:08:12]} 20. Nd3 {[%emt 0:04:29]} Rc7 {[%emt 0:00:58] [#]} 21. Bxf6 $1 {[%emt 0:00:35]} gxf6 {[%emt 0:00:42]} (21... Rxe1+ 22. Qxe1 Qxd7 23. Bxb7 Nxb7) 22. Qg4+ {[%emt 0:00:30] White is clearly winning.} Kh8 {[%emt 0:01:02]} 23. Nf4 {[%emt 0:01:06]} Rxe1+ {[%emt 0:01:27]} 24. Rxe1 {[%emt 0:00:04] White threatens Re8+ and mate.} Qxd7 {[%emt 0:00:09]} 25. Qh4 {[%emt 0:01:09]} Rc5 {[%emt 0:06:04]} 26. Qxf6+ {[%emt 0:02:44]} Kg8 {[%emt 0:00:01]} 27. Bxb7 {[%emt 0:00:46]} ({Inferior is} 27. Re7 Rc1+ 28. Bf1 Rxf1+ 29. Kxf1 Qd1+ 30. Re1 Ba6+ 31. Kg2 Qxe1 $11) (27. Bh3 $142 Qc6 28. Qd8+ Kg7 {[#]} 29. Ne6+ $1 {[%mdl 512]} fxe6 30. Qe7+ Kg6 31. Rxe6+ Qxe6 32. Qxe6+ Kg7 33. Qe7+ Kg6 34. f4) 27... Rf5 {[%emt 0:00:20] [#]} 28. Nd5 $1 {[%emt 0:00:48] Black did not feel at home in the position after the opening.  Weighted Error Value: White=0.31/Black=0.51} 1-0